[Event "Titled Tuesday Blitz July 4 Early 2023"]
[White "Makhmudov, Shukhrat"]
[Black "Torres Dominguez, David"]
[WhiteFideId "14200775"]
[BlackFideId "2220857"]
[WhiteElo "2387"]
[BlackElo "2156"]
[Result "1-0"]
[Round "4"]
[TimeControl "180+2"]
[Date "2023.07.04"]
[WhiteClock "0:00:11"]
[BlackClock "0:00:00"]
[Board "206"]

1. e4 {[%clk 0:03:00]}  Nc6 {[%clk 0:02:59]} 2. d4 {[%clk 0:02:59]}  e5 {[%clk 0:02:59]} 3. d5 {[%clk 0:02:59]}  Nce7 {[%clk 0:02:59]} 4. d6 {[%clk 0:02:57]}  cxd6 {[%clk 0:02:59]} 5. Bc4 {[%clk 0:02:57]}  d5 {[%clk 0:02:57]} 6. exd5 {[%clk 0:02:57]}  d6 {[%clk 0:02:58]} 7. Nf3 {[%clk 0:02:56]}  Ng6 {[%clk 0:02:57]} 8. h4 {[%clk 0:02:56]}  Nf6 {[%clk 0:02:49]} 9. g3 {[%clk 0:02:54]}  h5 {[%clk 0:02:42]} 10. Ng5 {[%clk 0:02:50]}  Be7 {[%clk 0:02:41]} 11. Bd3 {[%clk 0:02:45]}  Nf8 {[%clk 0:02:33]} 12. c4 {[%clk 0:02:43]}  N8d7 {[%clk 0:02:28]} 13. Nc3 {[%clk 0:02:36]}  Nc5 {[%clk 0:02:26]} 14. Be2 {[%clk 0:02:36]}  Bf5 {[%clk 0:02:22]} 15. b4 {[%clk 0:02:21]}  Nce4 {[%clk 0:02:22]} 16. Qa4+ {[%clk 0:02:17]}  Kf8 {[%clk 0:02:04]} 17. Ncxe4 {[%clk 0:02:15]}  Nxe4 {[%clk 0:02:03]} 18. Nxe4 {[%clk 0:02:13]}  Bxe4 {[%clk 0:02:04]} 19. f3 {[%clk 0:01:48]}  Bf5 {[%clk 0:02:02]} 20. Be3 {[%clk 0:01:47]}  e4 {[%clk 0:01:49]} 21. Qc2 {[%clk 0:01:17]}  Bf6 {[%clk 0:01:44]} 22. Rd1 {[%clk 0:00:45]}  exf3 {[%clk 0:01:35]} 23. Qxf5 {[%clk 0:00:43]}  fxe2 {[%clk 0:01:33]} 24. Kxe2 {[%clk 0:00:43]}  Qc7 {[%clk 0:01:30]} 25. c5 {[%clk 0:00:43]}  Re8 {[%clk 0:01:27]} 26. Kf2 {[%clk 0:00:37]}  Qe7 {[%clk 0:01:06]} 27. Rhe1 {[%clk 0:00:34]}  g6 {[%clk 0:01:03]} 28. Qf3 {[%clk 0:00:33]}  Kg7 {[%clk 0:01:03]} 29. Kg2 {[%clk 0:00:27]}  Be5 {[%clk 0:00:53]} 30. Bd4 {[%clk 0:00:24]}  f6 {[%clk 0:00:45]} 31. Bxe5 {[%clk 0:00:21]}  fxe5 {[%clk 0:00:45]} 32. Qe3 {[%clk 0:00:18]}  Rhf8 {[%clk 0:00:39]} 33. a4 {[%clk 0:00:17]}  Rf5 {[%clk 0:00:38]} 34. b5 {[%clk 0:00:17]}  dxc5 {[%clk 0:00:33]} 35. d6 {[%clk 0:00:17]}  Qd7 {[%clk 0:00:28]} 36. Qxc5 {[%clk 0:00:17]}  Ref8 {[%clk 0:00:27]} 37. Rxe5 {[%clk 0:00:15]}  Rf2+ {[%clk 0:00:24]} 38. Qxf2 {[%clk 0:00:14]}  Rxf2+ {[%clk 0:00:23]} 39. Kxf2 {[%clk 0:00:15]}  Qf7+ {[%clk 0:00:20]} 40. Kg1 {[%clk 0:00:13]}  Qf6 {[%clk 0:00:00]} 41. Re3 {[%clk 0:00:11]} 1-0


[Site "https://www.chess.com"]

[Event "Titled Tuesday Blitz July 4 Early 2023"]
[White "Martins, Bruno Andre Leite"]
[Black "Marin Masis, Jose Esteban"]
[WhiteFideId "1942255"]
[BlackFideId "6508146"]
[WhiteElo "2604"]
[BlackElo "2109"]
[Result "1-0"]
[Round "4"]
[TimeControl "180+2"]
[Date "2023.07.04"]
[WhiteClock "0:00:29"]
[BlackClock "0:00:00"]
[Board "208"]

1. e4 {[%clk 0:02:59]}  c5 {[%clk 0:02:59]} 2. Nf3 {[%clk 0:02:59]}  Nc6 {[%clk 0:02:59]} 3. d4 {[%clk 0:02:59]}  cxd4 {[%clk 0:03:00]} 4. Nxd4 {[%clk 0:02:53]}  Nf6 {[%clk 0:03:00]} 5. Nc3 {[%clk 0:02:53]}  e5 {[%clk 0:03:00]} 6. Ndb5 {[%clk 0:02:54]}  d6 {[%clk 0:03:01]} 7. Bg5 {[%clk 0:02:54]}  a6 {[%clk 0:03:01]} 8. Na3 {[%clk 0:02:54]}  b5 {[%clk 0:03:02]} 9. Nd5 {[%clk 0:02:53]}  Be7 {[%clk 0:03:02]} 10. Bxf6 {[%clk 0:02:51]}  Bxf6 {[%clk 0:03:01]} 11. c4 {[%clk 0:02:52]}  b4 {[%clk 0:03:00]} 12. Nc2 {[%clk 0:02:52]}  a5 {[%clk 0:03:00]} 13. Be2 {[%clk 0:02:50]}  O-O {[%clk 0:02:59]} 14. O-O {[%clk 0:02:48]}  Bg5 {[%clk 0:02:59]} 15. Qd3 {[%clk 0:02:42]}  f5 {[%clk 0:02:53]} 16. Bf3 {[%clk 0:02:36]}  Be6 {[%clk 0:02:36]} 17. Rad1 {[%clk 0:02:20]}  Ra7 {[%clk 0:02:25]} 18. exf5 {[%clk 0:02:14]}  Bxf5 {[%clk 0:02:22]} 19. Be4 {[%clk 0:02:13]}  Bxe4 {[%clk 0:02:10]} 20. Qxe4 {[%clk 0:02:10]}  Ne7 {[%clk 0:02:05]} 21. Nce3 {[%clk 0:01:51]}  Rd7 {[%clk 0:02:01]} 22. Nxe7+ {[%clk 0:01:47]}  Qxe7 {[%clk 0:01:58]} 23. Nd5 {[%clk 0:01:19]}  Qe6 {[%clk 0:01:45]} 24. Rd3 {[%clk 0:01:13]}  Qf5 {[%clk 0:01:29]} 25. Qxf5 {[%clk 0:01:09]}  Rxf5 {[%clk 0:01:30]} 26. Rfd1 {[%clk 0:01:06]}  e4 {[%clk 0:00:47]} 27. Rd4 {[%clk 0:01:05]}  Rdf7 {[%clk 0:00:45]} 28. Rf1 {[%clk 0:00:43]}  e3 {[%clk 0:00:44]} 29. f3 {[%clk 0:00:42]}  e2 {[%clk 0:00:22]} 30. Re1 {[%clk 0:00:31]}  Rxd5 {[%clk 0:00:05]} 31. Rxd5 {[%clk 0:00:30]}  Be3+ {[%clk 0:00:00]} 32. Kh1 {[%clk 0:00:29]} 1-0


[Site "https://www.chess.com"]

[Event "Titled Tuesday Blitz July 4 Early 2023"]
[White "Tuleyeva-Aketayeva, Dana"]
[Black "only_strong_moves"]
[WhiteFideId "13701932"]
[WhiteElo "2245"]
[BlackElo "2519"]
[Result "0-1"]
[Round "4"]
[TimeControl "180+2"]
[Date "2023.07.04"]
[WhiteClock "0:00:06"]
[BlackClock "0:00:43"]
[Board "209"]

1. d4 {[%clk 0:03:00]}  d5 {[%clk 0:02:59]} 2. Nf3 {[%clk 0:02:51]}  Nf6 {[%clk 0:02:57]} 3. g3 {[%clk 0:02:42]}  e6 {[%clk 0:02:56]} 4. Bg2 {[%clk 0:02:43]}  Be7 {[%clk 0:02:56]} 5. O-O {[%clk 0:02:43]}  O-O {[%clk 0:02:57]} 6. c4 {[%clk 0:02:44]}  c6 {[%clk 0:02:55]} 7. Nc3 {[%clk 0:02:43]}  b6 {[%clk 0:02:54]} 8. Nd2 {[%clk 0:02:34]}  Bb7 {[%clk 0:02:54]} 9. e4 {[%clk 0:02:35]}  Na6 {[%clk 0:02:49]} 10. e5 {[%clk 0:02:31]}  Nd7 {[%clk 0:02:49]} 11. cxd5 {[%clk 0:02:30]}  cxd5 {[%clk 0:02:47]} 12. f4 {[%clk 0:02:20]}  f5 {[%clk 0:02:45]} 13. Nf3 {[%clk 0:02:18]}  Rc8 {[%clk 0:02:44]} 14. Bd2 {[%clk 0:02:15]}  Nb4 {[%clk 0:02:42]} 15. a3 {[%clk 0:02:05]}  Nc6 {[%clk 0:02:42]} 16. b4 {[%clk 0:02:02]}  Ncb8 {[%clk 0:02:33]} 17. b5 {[%clk 0:01:58]}  g6 {[%clk 0:02:27]} 18. a4 {[%clk 0:01:56]}  Qe8 {[%clk 0:02:21]} 19. Qb3 {[%clk 0:01:39]}  Qf7 {[%clk 0:02:17]} 20. h4 {[%clk 0:01:36]}  Rc4 {[%clk 0:02:15]} 21. Rfc1 {[%clk 0:01:28]}  Rfc8 {[%clk 0:02:12]} 22. Bf1 {[%clk 0:01:26]}  R4c7 {[%clk 0:02:12]} 23. Na2 {[%clk 0:01:19]}  h6 {[%clk 0:02:06]} 24. Rxc7 {[%clk 0:01:13]}  Rxc7 {[%clk 0:02:06]} 25. Rc1 {[%clk 0:01:14]}  Rxc1 {[%clk 0:02:05]} 26. Bxc1 {[%clk 0:01:14]}  Qe8 {[%clk 0:02:04]} 27. Qc2 {[%clk 0:01:10]}  Kf7 {[%clk 0:02:00]} 28. Bd2 {[%clk 0:01:10]}  a5 {[%clk 0:01:56]} 29. Nc1 {[%clk 0:00:48]}  Bd8 {[%clk 0:01:49]} 30. Nb3 {[%clk 0:00:46]}  Qe7 {[%clk 0:01:48]} 31. Qc1 {[%clk 0:00:39]}  Nf8 {[%clk 0:01:46]} 32. Bd3 {[%clk 0:00:35]}  Nh7 {[%clk 0:01:46]} 33. Kf2 {[%clk 0:00:36]}  Qf8 {[%clk 0:01:43]} 34. Be3 {[%clk 0:00:24]}  Qg8 {[%clk 0:01:38]} 35. Qg1 {[%clk 0:00:19]}  g5 {[%clk 0:01:31]} 36. hxg5 {[%clk 0:00:19]}  hxg5 {[%clk 0:01:32]} 37. Qh1 {[%clk 0:00:18]}  g4 {[%clk 0:01:29]} 38. Nfd2 {[%clk 0:00:17]}  Nd7 {[%clk 0:01:27]} 39. Qh5+ {[%clk 0:00:16]}  Kg7 {[%clk 0:01:21]} 40. Qh1 {[%clk 0:00:12]}  Nhf8 {[%clk 0:01:17]} 41. Ke2 {[%clk 0:00:12]}  Ng6 {[%clk 0:01:17]} 42. Kd1 {[%clk 0:00:11]}  Qf8 {[%clk 0:01:16]} 43. Ke2 {[%clk 0:00:11]}  Qa3 {[%clk 0:01:15]} 44. Qa1 {[%clk 0:00:11]}  Qb4 {[%clk 0:01:11]} 45. Qa2 {[%clk 0:00:10]}  Qf8 {[%clk 0:01:10]} 46. Qc2 {[%clk 0:00:10]}  Qh8 {[%clk 0:01:10]} 47. Qd1 {[%clk 0:00:10]}  Qh2+ {[%clk 0:01:10]} 48. Bf2 {[%clk 0:00:10]}  Bh4 {[%clk 0:00:57]} 49. Qg1 {[%clk 0:00:11]}  Qxg1 {[%clk 0:00:56]} 50. Bxg1 {[%clk 0:00:10]}  Bxg3 {[%clk 0:00:57]} 51. Bf2 {[%clk 0:00:10]}  Nxf4+ {[%clk 0:00:55]} 52. Ke3 {[%clk 0:00:09]}  Nxd3 {[%clk 0:00:50]} 53. Bxg3 {[%clk 0:00:08]}  Nb2 {[%clk 0:00:51]} 54. Kf4 {[%clk 0:00:06]}  Kg6 {[%clk 0:00:51]} 55. Be1 {[%clk 0:00:06]}  Nxa4 {[%clk 0:00:50]} 56. Nb1 {[%clk 0:00:07]}  Nb2 {[%clk 0:00:49]} 57. Nxa5 {[%clk 0:00:07]}  bxa5 {[%clk 0:00:48]} 58. Bxa5 {[%clk 0:00:08]}  Nc4 {[%clk 0:00:44]} 59. Nc3 {[%clk 0:00:06]}  Nxa5 {[%clk 0:00:43]} 0-1


[Site "https://www.chess.com"]

[Event "Titled Tuesday Blitz July 4 Early 2023"]
[White "Womacka, Mathias"]
[Black "Peiris, T G M"]
[WhiteFideId "4611390"]
[BlackFideId "9901310"]
[WhiteElo "2509"]
[BlackElo "2235"]
[Result "1-0"]
[Round "4"]
[TimeControl "180+2"]
[Date "2023.07.04"]
[WhiteClock "0:00:47"]
[BlackClock "0:00:31"]
[Board "210"]

1. e4 {[%clk 0:03:00]}  c5 {[%clk 0:02:56]} 2. Nf3 {[%clk 0:03:00]}  Nc6 {[%clk 0:02:57]} 3. d4 {[%clk 0:03:01]}  cxd4 {[%clk 0:02:58]} 4. Nxd4 {[%clk 0:03:01]}  Nf6 {[%clk 0:02:58]} 5. Nc3 {[%clk 0:03:01]}  g6 {[%clk 0:02:58]} 6. Nxc6 {[%clk 0:02:59]}  dxc6 {[%clk 0:02:58]} 7. Qxd8+ {[%clk 0:02:58]}  Kxd8 {[%clk 0:02:59]} 8. Bc4 {[%clk 0:02:52]}  Ke8 {[%clk 0:02:55]} 9. Bf4 {[%clk 0:02:46]}  Bg7 {[%clk 0:02:55]} 10. O-O-O {[%clk 0:02:39]}  Nh5 {[%clk 0:02:55]} 11. Be3 {[%clk 0:02:39]}  e5 {[%clk 0:02:40]} 12. a4 {[%clk 0:02:33]}  Nf4 {[%clk 0:02:38]} 13. g3 {[%clk 0:02:28]}  Ne6 {[%clk 0:02:32]} 14. a5 {[%clk 0:02:22]}  Nc7 {[%clk 0:02:31]} 15. Na4 {[%clk 0:02:06]}  Ne6 {[%clk 0:02:08]} 16. Nc5 {[%clk 0:02:00]}  Nxc5 {[%clk 0:02:08]} 17. Bxc5 {[%clk 0:02:00]}  Bg4 {[%clk 0:01:59]} 18. Rd3 {[%clk 0:01:40]}  Be2 {[%clk 0:01:46]} 19. Rc3 {[%clk 0:01:39]}  Bxc4 {[%clk 0:01:45]} 20. Rxc4 {[%clk 0:01:40]}  Bf8 {[%clk 0:01:06]} 21. Bxf8 {[%clk 0:01:37]}  Rxf8 {[%clk 0:01:05]} 22. a6 {[%clk 0:01:36]}  bxa6 {[%clk 0:01:03]} 23. Rxc6 {[%clk 0:01:35]}  Kd7 {[%clk 0:00:59]} 24. Rxa6 {[%clk 0:01:34]}  Rfc8 {[%clk 0:00:59]} 25. Rd1+ {[%clk 0:01:32]}  Ke7 {[%clk 0:01:00]} 26. Rd5 {[%clk 0:01:25]}  f6 {[%clk 0:01:00]} 27. Rdd6 {[%clk 0:01:24]}  Rc4 {[%clk 0:00:54]} 28. f3 {[%clk 0:01:16]}  Rac8 {[%clk 0:00:54]} 29. c3 {[%clk 0:01:15]}  R4c7 {[%clk 0:00:50]} 30. Rxf6 {[%clk 0:01:08]}  Rd8 {[%clk 0:00:51]} 31. Rae6+ {[%clk 0:01:06]}  Kd7 {[%clk 0:00:50]} 32. Rxe5 {[%clk 0:01:04]}  Kc8 {[%clk 0:00:47]} 33. Rfe6 {[%clk 0:01:01]}  Rd3 {[%clk 0:00:46]} 34. f4 {[%clk 0:00:57]}  Rf3 {[%clk 0:00:40]} 35. Re7 {[%clk 0:00:55]}  h5 {[%clk 0:00:35]} 36. Rxc7+ {[%clk 0:00:53]}  Kxc7 {[%clk 0:00:36]} 37. Re7+ {[%clk 0:00:47]}  Kb6 {[%clk 0:00:31]} 38. Re6+ {[%clk 0:00:47]} 1-0


[Site "https://www.chess.com"]

[Event "Titled Tuesday Blitz July 4 Early 2023"]
[White "Cueto, Jonny"]
[Black "Mica, Marek"]
[WhiteFideId "3300145"]
[BlackFideId "382884"]
[WhiteElo "2199"]
[BlackElo "2480"]
[Result "0-1"]
[Round "4"]
[TimeControl "180+2"]
[Date "2023.07.04"]
[WhiteClock "0:00:00"]
[BlackClock "0:02:13"]
[Board "214"]

1. d4 {[%clk 0:03:00]}  Nf6 {[%clk 0:02:58]} 2. Bf4 {[%clk 0:03:00]}  d5 {[%clk 0:02:56]} 3. e3 {[%clk 0:02:59]}  c5 {[%clk 0:02:55]} 4. Nf3 {[%clk 0:02:59]}  Nc6 {[%clk 0:02:55]} 5. Nbd2 {[%clk 0:02:59]}  e6 {[%clk 0:02:53]} 6. c3 {[%clk 0:02:59]}  cxd4 {[%clk 0:02:53]} 7. exd4 {[%clk 0:02:59]}  Nh5 {[%clk 0:02:53]} 8. Bg5 {[%clk 0:02:55]}  f6 {[%clk 0:02:53]} 9. Bh4 {[%clk 0:02:54]}  Bd6 {[%clk 0:02:52]} 10. Bd3 {[%clk 0:02:37]}  Nf4 {[%clk 0:02:50]} 11. Bf1 {[%clk 0:02:01]}  O-O {[%clk 0:02:49]} 12. Nb3 {[%clk 0:01:57]}  Qc7 {[%clk 0:02:48]} 13. Bg3 {[%clk 0:01:52]}  Bd7 {[%clk 0:02:43]} 14. Bxf4 {[%clk 0:01:52]}  Bxf4 {[%clk 0:02:43]} 15. Bd3 {[%clk 0:01:53]}  Rae8 {[%clk 0:02:42]} 16. O-O {[%clk 0:01:53]}  e5 {[%clk 0:02:41]} 17. dxe5 {[%clk 0:01:53]}  fxe5 {[%clk 0:02:42]} 18. Bc2 {[%clk 0:01:47]}  Ne7 {[%clk 0:02:37]} 19. g3 {[%clk 0:01:44]}  Bh6 {[%clk 0:02:37]} 20. Re1 {[%clk 0:01:41]}  Bg4 {[%clk 0:02:36]} 21. Nbd2 {[%clk 0:01:32]}  Bxd2 {[%clk 0:02:33]} 22. Bxh7+ {[%clk 0:00:29]}  Kxh7 {[%clk 0:02:30]} 23. Ng5+ {[%clk 0:00:29]}  Bxg5 {[%clk 0:02:30]} 24. Qxg4 {[%clk 0:00:28]}  Bh6 {[%clk 0:02:29]} 25. Qh5 {[%clk 0:00:22]}  Ng6 {[%clk 0:02:27]} 26. g4 {[%clk 0:00:21]}  Nf4 {[%clk 0:02:25]} 27. Qh4 {[%clk 0:00:17]}  Qe7 {[%clk 0:02:23]} 28. Qg3 {[%clk 0:00:16]}  g5 {[%clk 0:02:20]} 29. Qf3 {[%clk 0:00:04]}  e4 {[%clk 0:02:20]} 30. Qd1 {[%clk 0:00:04]}  Nd3 {[%clk 0:02:20]} 31. Re2 {[%clk 0:00:03]}  Qd7 {[%clk 0:02:19]} 32. c4 {[%clk 0:00:01]}  Qxg4+ {[%clk 0:02:17]} 33. Kh1 {[%clk 0:00:00]}  Rxf2 {[%clk 0:02:13]} 0-1


[Site "https://www.chess.com"]

[Event "Titled Tuesday Blitz July 4 Early 2023"]
[White "Ivanova, Karina"]
[Black "GAO"]
[WhiteFideId "24139750"]
[WhiteElo "2198"]
[BlackElo "2403"]
[Result "0-1"]
[Round "4"]
[TimeControl "180+2"]
[Date "2023.07.04"]
[WhiteClock "0:00:00"]
[BlackClock "0:01:07"]
[Board "215"]

1. d4 {[%clk 0:02:59]}  Nf6 {[%clk 0:02:59]} 2. Nf3 {[%clk 0:02:58]}  c5 {[%clk 0:02:57]} 3. c4 {[%clk 0:02:55]}  g6 {[%clk 0:02:56]} 4. g3 {[%clk 0:02:55]}  cxd4 {[%clk 0:02:55]} 5. Nxd4 {[%clk 0:02:54]}  Bg7 {[%clk 0:02:56]} 6. Bg2 {[%clk 0:02:53]}  O-O {[%clk 0:02:55]} 7. O-O {[%clk 0:02:52]}  Nc6 {[%clk 0:02:54]} 8. Nc3 {[%clk 0:02:51]}  d6 {[%clk 0:02:54]} 9. Nxc6 {[%clk 0:02:47]}  bxc6 {[%clk 0:02:55]} 10. Bg5 {[%clk 0:02:46]}  Rb8 {[%clk 0:02:54]} 11. Qd2 {[%clk 0:02:33]}  Qa5 {[%clk 0:02:44]} 12. Bxc6 {[%clk 0:02:02]}  Bh3 {[%clk 0:02:30]} 13. Bg2 {[%clk 0:02:00]}  Bxg2 {[%clk 0:02:30]} 14. Kxg2 {[%clk 0:02:00]}  Rfc8 {[%clk 0:02:13]} 15. b3 {[%clk 0:01:35]}  d5 {[%clk 0:01:49]} 16. Nxd5 {[%clk 0:01:14]}  Qxd2 {[%clk 0:01:45]} 17. Nxf6+ {[%clk 0:01:13]}  Bxf6 {[%clk 0:01:43]} 18. Bxd2 {[%clk 0:01:12]}  Bxa1 {[%clk 0:01:44]} 19. Rxa1 {[%clk 0:01:12]}  Rd8 {[%clk 0:01:42]} 20. Be3 {[%clk 0:01:07]}  a5 {[%clk 0:01:41]} 21. Rb1 {[%clk 0:01:05]}  e5 {[%clk 0:01:38]} 22. g4 {[%clk 0:01:01]}  f6 {[%clk 0:01:37]} 23. Kf3 {[%clk 0:00:58]}  Kf7 {[%clk 0:01:38]} 24. Ke4 {[%clk 0:00:57]}  Ke6 {[%clk 0:01:38]} 25. Rb2 {[%clk 0:00:41]}  Rd1 {[%clk 0:01:36]} 26. Rd2 {[%clk 0:00:34]}  Rxd2 {[%clk 0:01:32]} 27. Bxd2 {[%clk 0:00:34]}  a4 {[%clk 0:01:33]} 28. b4 {[%clk 0:00:31]}  f5+ {[%clk 0:01:32]} 29. gxf5+ {[%clk 0:00:29]}  gxf5+ {[%clk 0:01:33]} 30. Kd3 {[%clk 0:00:28]}  Rd8+ {[%clk 0:01:32]} 31. Kc3 {[%clk 0:00:25]}  Rg8 {[%clk 0:01:28]} 32. b5 {[%clk 0:00:23]}  Kd6 {[%clk 0:01:26]} 33. Kb4 {[%clk 0:00:22]}  Rg2 {[%clk 0:01:25]} 34. Be3 {[%clk 0:00:17]}  f4 {[%clk 0:01:18]} 35. Ba7 {[%clk 0:00:13]}  Kc7 {[%clk 0:01:15]} 36. Kxa4 {[%clk 0:00:11]}  Kb7 {[%clk 0:01:15]} 37. Bc5 {[%clk 0:00:11]}  Rxh2 {[%clk 0:01:14]} 38. Kb4 {[%clk 0:00:11]}  Rh1 {[%clk 0:01:14]} 39. a4 {[%clk 0:00:10]}  h5 {[%clk 0:01:13]} 40. a5 {[%clk 0:00:10]}  Rb1+ {[%clk 0:01:14]} 41. Kc3 {[%clk 0:00:09]}  h4 {[%clk 0:01:12]} 42. a6+ {[%clk 0:00:09]}  Ka8 {[%clk 0:01:13]} 43. b6 {[%clk 0:00:08]}  h3 {[%clk 0:01:11]} 44. b7+ {[%clk 0:00:08]}  Rxb7 {[%clk 0:01:08]} 45. axb7+ {[%clk 0:00:08]}  Kxb7 {[%clk 0:01:09]} 46. Bd6 {[%clk 0:00:08]}  h2 {[%clk 0:01:09]} 47. Bxe5 {[%clk 0:00:08]}  h1=Q {[%clk 0:01:09]} 48. Bxf4 {[%clk 0:00:08]}  Qg2 {[%clk 0:01:09]} 49. Be3 {[%clk 0:00:08]}  Kc6 {[%clk 0:01:08]} 50. Kd3 {[%clk 0:00:07]}  Qg6+ {[%clk 0:01:07]} 51. Kc3 {[%clk 0:00:06]}  Qb1 {[%clk 0:01:07]} 52. f3 {[%clk 0:00:05]}  Qd1 {[%clk 0:01:07]} 53. Bd4 {[%clk 0:00:04]}  Qxe2 {[%clk 0:01:07]} 54. f4 {[%clk 0:00:00]}  Qf3+ {[%clk 0:01:07]} 0-1


[Site "https://www.chess.com"]

[Event "Titled Tuesday Blitz July 4 Early 2023"]
[White "Mishra, Manoj"]
[Black "Carrasco Miranda, Andres"]
[WhiteFideId "5006007"]
[BlackFideId "3405990"]
[WhiteElo "2197"]
[BlackElo "2401"]
[Result "0-1"]
[Round "4"]
[TimeControl "180+2"]
[Date "2023.07.04"]
[WhiteClock "0:00:09"]
[BlackClock "0:01:10"]
[Board "216"]

1. d4 {[%clk 0:02:41]}  Nf6 {[%clk 0:02:59]} 2. Bg5 {[%clk 0:02:40]}  d5 {[%clk 0:02:58]} 3. e3 {[%clk 0:02:39]}  c5 {[%clk 0:02:57]} 4. c3 {[%clk 0:02:34]}  Qb6 {[%clk 0:02:55]} 5. Qb3 {[%clk 0:02:32]}  c4 {[%clk 0:02:54]} 6. Qxb6 {[%clk 0:02:32]}  axb6 {[%clk 0:02:55]} 7. Bxf6 {[%clk 0:02:32]}  gxf6 {[%clk 0:02:54]} 8. Nd2 {[%clk 0:02:32]}  b5 {[%clk 0:02:52]} 9. e4 {[%clk 0:02:31]}  dxe4 {[%clk 0:02:46]} 10. Nxe4 {[%clk 0:02:30]}  f5 {[%clk 0:02:46]} 11. Nd2 {[%clk 0:02:24]}  Bh6 {[%clk 0:02:43]} 12. g3 {[%clk 0:02:20]}  f4 {[%clk 0:02:40]} 13. Ngf3 {[%clk 0:02:12]}  Nc6 {[%clk 0:02:40]} 14. Bg2 {[%clk 0:01:49]}  Bf5 {[%clk 0:02:34]} 15. O-O {[%clk 0:01:48]}  Bd3 {[%clk 0:02:34]} 16. Rfe1 {[%clk 0:01:47]}  e6 {[%clk 0:02:34]} 17. d5 {[%clk 0:01:46]}  Nd8 {[%clk 0:02:19]} 18. g4 {[%clk 0:01:45]}  O-O {[%clk 0:01:52]} 19. g5 {[%clk 0:01:41]}  Bg7 {[%clk 0:01:52]} 20. Nd4 {[%clk 0:01:34]}  Bxd4 {[%clk 0:01:36]} 21. cxd4 {[%clk 0:01:35]}  exd5 {[%clk 0:01:33]} 22. Bxd5 {[%clk 0:01:34]}  Nc6 {[%clk 0:01:33]} 23. Nf3 {[%clk 0:01:28]}  Rfd8 {[%clk 0:01:28]} 24. Bxc6 {[%clk 0:01:23]}  bxc6 {[%clk 0:01:29]} 25. Kg2 {[%clk 0:00:50]}  Rd5 {[%clk 0:01:27]} 26. Kh3 {[%clk 0:00:48]}  Bf5+ {[%clk 0:01:24]} 27. Kh4 {[%clk 0:00:48]}  b4 {[%clk 0:01:17]} 28. Re5 {[%clk 0:00:39]}  b3 {[%clk 0:01:10]} 29. Rxd5 {[%clk 0:00:16]}  cxd5 {[%clk 0:01:11]} 30. a3 {[%clk 0:00:09]}  c3 {[%clk 0:01:10]} 0-1


[Site "https://www.chess.com"]

[Event "Titled Tuesday Blitz July 4 Early 2023"]
[White "Thiel, Thomas"]
[Black "Tinmaz, Kerem"]
[WhiteFideId "4615964"]
[BlackFideId "44559151"]
[WhiteElo "2191"]
[BlackElo "2389"]
[Result "1-0"]
[Round "4"]
[TimeControl "180+2"]
[Date "2023.07.04"]
[WhiteClock "0:00:36"]
[BlackClock "0:00:00"]
[Board "217"]

1. e4 {[%clk 0:03:00]}  c5 {[%clk 0:02:59]} 2. Nc3 {[%clk 0:02:59]}  e6 {[%clk 0:02:59]} 3. Nge2 {[%clk 0:02:57]}  a6 {[%clk 0:02:59]} 4. g3 {[%clk 0:02:56]}  b5 {[%clk 0:02:54]} 5. Bg2 {[%clk 0:02:55]}  Bb7 {[%clk 0:02:54]} 6. d4 {[%clk 0:02:55]}  cxd4 {[%clk 0:02:53]} 7. Nxd4 {[%clk 0:02:56]}  Nc6 {[%clk 0:02:51]} 8. O-O {[%clk 0:02:53]}  Nf6 {[%clk 0:02:51]} 9. Nxc6 {[%clk 0:02:50]}  dxc6 {[%clk 0:02:14]} 10. e5 {[%clk 0:02:48]}  Qxd1 {[%clk 0:02:08]} 11. Rxd1 {[%clk 0:02:46]}  Nd5 {[%clk 0:02:08]} 12. Ne4 {[%clk 0:02:45]}  O-O-O {[%clk 0:02:01]} 13. Bg5 {[%clk 0:02:21]}  Rd7 {[%clk 0:01:54]} 14. c3 {[%clk 0:02:15]}  h6 {[%clk 0:01:52]} 15. Bd2 {[%clk 0:02:12]}  Be7 {[%clk 0:01:47]} 16. Kf1 {[%clk 0:02:08]}  Rhd8 {[%clk 0:01:45]} 17. Ke2 {[%clk 0:01:58]}  c5 {[%clk 0:01:32]} 18. Be1 {[%clk 0:01:56]}  Nb6 {[%clk 0:01:23]} 19. Rxd7 {[%clk 0:01:47]}  Rxd7 {[%clk 0:01:24]} 20. f4 {[%clk 0:01:44]}  f5 {[%clk 0:00:59]} 21. exf6 {[%clk 0:01:43]}  gxf6 {[%clk 0:01:00]} 22. Bf3 {[%clk 0:01:38]}  Nc4 {[%clk 0:00:42]} 23. b3 {[%clk 0:01:33]}  f5 {[%clk 0:00:42]} 24. bxc4 {[%clk 0:01:29]}  fxe4 {[%clk 0:00:31]} 25. Bg4 {[%clk 0:01:28]}  Rd6 {[%clk 0:00:32]} 26. cxb5 {[%clk 0:01:17]}  axb5 {[%clk 0:00:33]} 27. Ke3 {[%clk 0:01:16]}  Bf6 {[%clk 0:00:31]} 28. Rd1 {[%clk 0:01:15]}  Kc7 {[%clk 0:00:18]} 29. Rxd6 {[%clk 0:01:11]}  Kxd6 {[%clk 0:00:19]} 30. Bd1 {[%clk 0:01:04]}  Bd5 {[%clk 0:00:16]} 31. Bb3 {[%clk 0:01:03]}  Bxb3 {[%clk 0:00:01]} 32. axb3 {[%clk 0:01:04]}  Kd5 {[%clk 0:00:02]} 33. g4 {[%clk 0:00:56]}  e5 {[%clk 0:00:02]} 34. fxe5 {[%clk 0:00:52]}  Bg5+ {[%clk 0:00:02]} 35. Ke2 {[%clk 0:00:49]}  Kxe5 {[%clk 0:00:03]} 36. h4 {[%clk 0:00:48]}  Bf4 {[%clk 0:00:02]} 37. Bd2 {[%clk 0:00:48]}  Bxd2 {[%clk 0:00:02]} 38. Kxd2 {[%clk 0:00:48]}  Kf4 {[%clk 0:00:03]} 39. g5 {[%clk 0:00:40]}  hxg5 {[%clk 0:00:04]} 40. h5 {[%clk 0:00:40]}  g4 {[%clk 0:00:02]} 41. h6 {[%clk 0:00:40]}  g3 {[%clk 0:00:03]} 42. h7 {[%clk 0:00:40]}  g2 {[%clk 0:00:03]} 43. h8=Q {[%clk 0:00:39]}  g1=Q {[%clk 0:00:03]} 44. Qf6+ {[%clk 0:00:37]}  Kg3 {[%clk 0:00:03]} 45. Qg5+ {[%clk 0:00:37]}  Kh2 {[%clk 0:00:03]} 46. Qxg1+ {[%clk 0:00:37]}  Kxg1 {[%clk 0:00:04]} 47. Ke3 {[%clk 0:00:37]}  Kf1 {[%clk 0:00:04]} 48. Kxe4 {[%clk 0:00:37]}  Ke2 {[%clk 0:00:04]} 49. Kd5 {[%clk 0:00:37]}  Kd3 {[%clk 0:00:05]} 50. Kxc5 {[%clk 0:00:36]}  Kxc3 {[%clk 0:00:00]} 51. b4 {[%clk 0:00:36]} 1-0


[Site "https://www.chess.com"]